fUSD/lending_fUSD_20240126
["ID","MTS","AMOUNT","RATE_DAILY","PERIOD"]
[312807973,1706285432405,-526.23335589,0.00022997,2]
[312807975,1706285432414,-186.04753694,0.00022997,2]
[312807977,1706285432423,-1050.30585415,0.00022997,2]
[312807979,1706285432432,-501.74130467,0.00022997,2]
[312807981,1706285432441,-234.27129848,0.00022997,2]
[312807983,1706285432451,-3014.9603037,0.00022998,2]
[312807985,1706285432460,-697.62700742,0.00022998,2]
[312807987,1706285432469,-296.74616602,0.00022998,2]
[312807989,1706285432477,-349.7261996,0.00022998,2]
[312807991,1706285432487,-940.65228731,0.00022998,2]
[312807993,1706285432498,-599.27979208,0.00022998,2]
[312807995,1706285432507,-728.01491166,0.00022998,2]
[312807997,1706285432516,-2737.59640602,0.00022998,2]
[312807999,1706285432525,-203.12390135,0.00022998,2]
[312808001,1706285432533,-24036.28835478,0.00022998,2]
[312808003,1706285432542,-2651.69571256,0.00022998,2]
[312808005,1706285432551,-326.5304041,0.00022998,2]
[312808007,1706285432560,-759.43433451,0.00022998,2]
[312808008,1706285432570,-2753.364375,0.00022998,2]
[312808009,1706285432579,-493.14134125,0.00022999,2]
[312808010,1706285432587,-150.01,0.00022999,2]
[312808011,1706285432596,-3263.07579626,0.00022999,2]
[312808012,1706285432618,-38.78760318,0.00022999,2]
[312808013,1706285432628,-2043.01250063,0.00022999,2]
[312808014,1706285432643,-3.6835693,0.00022999,2]
[312808015,1706285432652,-286.00835021,0.00022999,2]
[312808017,1706285432664,-147.02047355,0.00022999,2]
[312808019,1706285432674,-2112.57952645,0.00023,2]
[312808250,1706285438039,-300.02,0.00022999,2]
[312808252,1706285438048,-3247.64311271,0.00022999,2]
[312808254,1706285438057,-525.35728729,0.00023,2]
[312808256,1706285438068,-290.08119832,0.00023,2]
[312808259,1706285438079,-8537.93169598,0.00023,2]
[312808262,1706285438100,-29292.44253423,0.00023,2]
[312808264,1706285438111,-47425.07519047,0.00023,2]
[312808265,1706285438121,-7009.83023841,0.00023,2]
[312808266,1706285438132,-5366.16,0.00023,2]
[312808267,1706285438143,-6782.1,0.00023,2]
[312808268,1706285438154,-9670.41554236,0.00023,2]
[312808269,1706285438198,-4143.0,0.00023,2]
[312808270,1706285438223,-600.0,0.00023,2]
[312808271,1706285438235,-1040.2,0.00023,2]
[312808272,1706285438246,-1497.42917282,0.00023,2]
[312808273,1706285438338,-121255.16259157,0.00023,2]
[312808484,1706285440522,-291.63876558,0.00023,2]
[312808563,1706285441244,-66018.99477008,0.00023,2]
[312808567,1706285441273,-3126.15556654,0.00023,2]
[312808593,1706285441594,-43.23731901,0.00023,2]
[312808594,1706285441606,-1283.259996,0.00023,2]
[312808595,1706285441618,-633.4419193,0.00023,2]
[312808597,1706285441630,-924.67049967,0.00023,2]
[312808599,1706285441643,-829.66480278,0.00023,2]
[312808601,1706285441661,-12502.09358045,0.00023,2]
[312808610,1706285443081,-305.38352877,0.00022999,2]
[312808612,1706285443091,-333.2795419,0.00023,2]
[312808619,1706285443365,-587.2575,0.00023,2]
[312808620,1706285443382,-2083.7091,0.00023,2]
[312808621,1706285443402,-1359.96753527,0.00023,2]
[312808891,1706285446156,-224.55949482,0.00022,2]
[312808894,1706285446166,-471.53616442,0.00022999,2]
[312808896,1706285446176,-551.46634076,0.00023,2]
[312808920,1706285446394,-3411.40906629,0.00023,2]
[312808927,1706285446456,-69923.24315724,0.00023,2]
[312808984,1706285463906,300.0,0.000226,8]
[312808985,1706285465097,515.72519228,0.0004,120]
[312808986,1706285465875,600.0,0.000227,8]
[312808987,1706285468009,900.0,0.000228,8]
[312808988,1706285470100,1200.0,0.000229,8]
[312808990,1706285496247,168.99464481,0.0002535,10]
[312808995,1706285580724,151.0,0.00038399,120]
[312808996,1706285582650,155.0,0.00020606,2]
[312808997,1706285587721,565.9057501,0.00020377,2]
[312808998,1706285589042,155.44142013,0.00020606,2]
[312808999,1706285593335,730.38214306,0.00021,2]
[312809000,1706285600397,155.50013682,0.00020606,2]
[312809001,1706285639331,534.13134736,0.00020606,2]
[312809002,1706285639963,155.0,0.00020606,2]
[312809003,1706285644101,292.59971675,0.00020606,2]
[312809004,1706285645775,361.73108945,0.00020606,2]
[312809005,1706285648373,886.58422578,0.00020606,2]
[312809006,1706285650285,155.0,0.00020606,2]
[312809007,1706285653085,18997.99686631,0.00020606,2]
[312809008,1706285653939,155.20448562,0.00020606,2]
[312809009,1706285656276,1897.02918843,0.00020606,2]
[312809010,1706285658082,292.36259537,0.00020606,2]
[312809011,1706285659767,361.73108945,0.00020606,2]
[312809012,1706285660511,532.61805908,0.00020606,2]
[312809013,1706285664288,155.0,0.00020606,2]
[312809014,1706285664367,886.58422578,0.00020606,2]
[312809015,1706285667074,6221.84920187,0.00020606,2]
[312809016,1706285670285,1892.92486521,0.00020606,2]
[312809017,1706285677770,471.11581189,0.00020606,2]
[312809018,1706285680370,886.58422578,0.00020606,2]
[312809019,1706285682307,155.30019509,0.00020606,2]
[312809020,1706285698376,886.94456993,0.00020606,2]
[312809021,1706285770708,651.3281643,0.00041401,120]
[312809026,1706285850232,379.86,0.00021308,2]
[312809034,1706286122833,-533.21665731,0.00021741,2]
[312809035,1706286122863,-4494.87788226,0.00021741,2]
[312809036,1706286122889,-1000.0,0.00021742,2]
[312809037,1706286122914,-3131.46884188,0.00021743,2]
[312809038,1706286122943,-5840.43661855,0.00021748,2]
[312809039,1706286123487,813.68084084,0.00021308,2]
[312809045,1706286141019,831.98961037,0.00021413,2]
[312809046,1706286145448,807.57967891,0.00021308,2]
[312809047,1706286150454,1771.72376486,0.00021308,2]
[312809048,1706286152434,3518.4405472,0.00021308,2]
[312809049,1706286167470,807.57967891,0.00021308,2]
[312809050,1706286168057,1069.14587891,0.00021308,2]
[312809051,1706286168076,2000.0,0.00021308,2]
[312809052,1706286168101,2130.35563382,0.00021308,2]
[312809053,1706286185618,807.57967891,0.00021308,2]
[312809054,1706286190065,1501.47802998,0.00021308,2]
[312809057,1706286203467,807.57967891,0.00021308,2]
[312809058,1706286219468,900.09296793,0.00021308,2]
[312809059,1706286236596,-155.0,0.00021738,2]
[312809060,1706286236621,-7796.09975802,0.00021739,2]
[312809061,1706286236645,-2951.67554482,0.00021739,2]
[312809062,1706286236669,-3631.13972401,0.0002174,2]
[312809063,1706286236693,-697.96516303,0.0002174,2]
[312809064,1706286236716,-6448.89421292,0.0002174,2]
[312809065,1706286236740,-4494.87788226,0.00021741,2]
[312809066,1706286236764,-1000.0,0.00021741,2]
[312809067,1706286236787,-533.21665731,0.00021742,2]
[312809068,1706286236816,-1047.05058987,0.00021742,2]
[312809069,1706286236840,-235.51765712,0.00021742,2]
[312809070,1706286236867,-942.03003609,0.00021743,2]
[312809071,1706286236892,-1012.284157,0.00021743,2]
[312809072,1706286236916,-2310.49722789,0.00021744,2]
[312809073,1706286236941,-357.55187728,0.00021748,2]
[312809074,1706286236965,-1035.59,0.00021756,2]
[312809075,1706286236990,-3350.60951238,0.00021939,2]
[312809076,1706286241472,422.63261501,0.00021308,2]
[312809077,1706286243102,179.86004161,0.0002535,10]
[312809078,1706286259474,845.26523002,0.00021308,2]
[312809079,1706286297523,422.63261501,0.00021308,2]
[312809080,1706286313626,-533.21665731,0.00021936,2]
[312809081,1706286313650,-1047.05058987,0.00021937,2]
[312809082,1706286313674,-197.06163695,0.00021938,2]
[312809083,1706286313699,-222.67111587,0.00021939,2]
[312809084,1706286317477,422.63261501,0.00021308,2]
[312809085,1706286323484,8905.6315,0.00022342,90]
[312809086,1706286325905,368.82,0.00020864,2]
[312809087,1706286341485,422.63261501,0.00021308,2]
[312809088,1706286349637,-1000.0,0.00021936,2]
[312809089,1706286349664,-825.06937175,0.00021939,2]
[312809090,1706286349689,-1174.93062825,0.00021988,2]
[312809091,1706286355772,155.0,0.00020864,2]
[312809092,1706286356680,156.0704384,0.00018778,2]
[312809093,1706286357692,422.63261501,0.00020864,2]
[312809094,1706286371971,186.95672057,0.00020864,2]
[312809095,1706286372265,-319.28937175,0.00021988,2]
[312809096,1706286372289,-2680.71062825,0.00021993,2]
[312809097,1706286373492,218.21146527,0.00020864,2]
[312809098,1706286384206,292.37543854,0.00020864,2]
[312809099,1706286389925,362.59758498,0.00020864,2]
[312809100,1706286392602,533.55329785,0.00020864,2]
[312809101,1706286394110,5197.61402861,0.00020864,2]
[312809102,1706286396372,1892.88295925,0.00020864,2]
[312809103,1706286402818,251.63244978,0.00018778,2]
[312809104,1706286414096,3055.9773717,0.00020864,2]
[312809105,1706286416373,1891.34948283,0.00020864,2]
[312809106,1706286420170,291.26619984,0.00020864,2]
[312809107,1706286425925,361.47459832,0.00020864,2]
[312809108,1706286428577,536.29112856,0.00020864,2]
[312809109,1706286429750,155.0,0.00020864,2]
[312809110,1706286433696,18976.97972243,0.00020864,2]
[312809111,1706286441941,361.20697618,0.00020864,2]
[312809112,1706286451703,18976.97972243,0.00020864,2]
[312809113,1706286453882,155.0,0.00020864,2]
[312809114,1706286454221,200.0,0.000225,8]
[312809115,1706286456334,500.0,0.000226,8]
[312809116,1706286458435,800.0,0.000227,8]
[312809117,1706286460560,1100.0,0.000228,8]
[312809118,1706286461943,311.54705533,0.00020864,2]
[312809119,1706286463219,1400.0,0.000229,8]
[312809120,1706286470234,12126.27571396,0.00020864,2]
[312809121,1706286477742,166.23144376,0.00020864,2]
[312809122,1706286512228,159.98,0.00017404,2]
[312809175,1706286605696,150.0,0.00021605,2]
[312809176,1706286615890,690.02,0.00021596,2]
[312809177,1706286615914,500.0,0.00021596,2]
[312809178,1706286615939,967.821473,0.00021596,2]
[312809180,1706286625671,150.0,0.0002144,2]
[312809181,1706286629718,23900.0,0.00021604,2]
[312809200,1706286632305,-3631.13972401,0.00021702,2]
[312809201,1706286632314,-2624.33968539,0.00021702,2]
[312809202,1706286632323,-412.8313192,0.00021702,2]
[312809203,1706286632332,-942.03003609,0.00021703,2]
[312809204,1706286632342,-235.51765712,0.00021703,2]
[312809205,1706286632351,-155.0,0.00021703,2]
[312809206,1706286632360,-7796.09975802,0.00021703,2]
[312809207,1706286632369,-582.98882326,0.00021704,2]
[312809208,1706286632378,-263.84370514,0.00021704,2]
[312809209,1706286632387,-2906.43367088,0.00021704,2]
[312809210,1706286632397,-524.63659054,0.00021705,2]
[312809211,1706286632405,-162.03229046,0.00021706,2]
[312809212,1706286632415,-3136.51024279,0.00021706,2]
[312809214,1706286632438,-729.19563201,0.00021706,2]
[312809216,1706286632448,-5313.39718666,0.00021786,2]
[312809219,1706286632459,-980.65191279,0.00021786,2]
[312809221,1706286632475,-7421.83090055,0.00021786,2]
[312809223,1706286632484,-250.0,0.00021818,2]
[312809225,1706286632494,-500.0,0.00021935,2]
[312809227,1706286632503,-1576.76,0.00021988,2]
[312809229,1706286632513,-259.72,0.00021988,2]
[312809232,1706286632523,-1037.48,0.00021988,2]
[312809234,1706286632535,-564.8,0.00021992,2]
[312809236,1706286632545,-24.28937175,0.00021993,2]
[312809238,1706286632555,-493.14134125,0.00022315,2]
[312809240,1706286632565,-519.48,0.00022323,2]
[312809242,1706286632576,-215.80277915,0.00022418,2]
[312809244,1706286632586,-281.47653899,0.0002244,2]
[312809246,1706286632597,-242.5572894,0.0002244,2]
[312809248,1706286632607,-1484.40101427,0.0002244,2]
[312809250,1706286632617,-4641.49847148,0.0002244,2]
[312809252,1706286632627,-543.55682798,0.0002244,2]
[312809254,1706286632637,-698.71506355,0.0002244,2]
[312809256,1706286632647,-525.55971601,0.0002244,2]
[312809258,1706286632657,-245.21688013,0.0002244,2]
[312809260,1706286632666,-314.64308926,0.0002244,2]
[312809262,1706286632676,-308.0854695,0.0002244,2]
[312809264,1706286632685,-1000.0,0.0002244,2]
[312809266,1706286632696,-652.32515087,0.0002244,2]
[312809268,1706286632705,-4251.93051247,0.0002244,2]
[312809271,1706286632715,-473.80661658,0.0002244,2]
[312809273,1706286632725,-2148.1042989,0.0002244,2]
[312809274,1706286632735,-371.63566507,0.0002244,2]
[312809276,1706286632745,-420.7050767,0.0002244,2]
[312809277,1706286632755,-1049.2278981,0.00022441,2]
[312809278,1706286632764,-10537.74843302,0.00022441,2]
[312809279,1706286632773,-27147.2624,0.00022442,2]
[312809280,1706286632785,-697.28885181,0.00022538,2]
[312809281,1706286632794,-598.32768021,0.00022538,2]
[312809282,1706286632803,-2642.68092034,0.00022539,2]
[312809283,1706286632812,-265.79985989,0.0002254,2]
[312809284,1706286632821,-1418.81878163,0.0002254,2]
[312809285,1706286632830,-1071.96370442,0.0002254,2]
[312809287,1706286632839,-362.14319027,0.0002254,2]
[312809289,1706286632849,-202.91523791,0.0002254,2]
[312809291,1706286632859,-1769.93759612,0.0002254,2]
[312809293,1706286632869,-1711.28766055,0.0002254,2]
[312809295,1706286632879,-155.0,0.0002254,2]
[312809297,1706286632889,-249.04508672,0.0002254,2]
[312809299,1706286632898,-1257.66975103,0.0002254,2]
[312809301,1706286632908,-155.0,0.0002254,2]
[312809303,1706286632917,-354.93675515,0.0002254,2]
[312809305,1706286632928,-24036.28835478,0.0002254,2]
[312809307,1706286632939,-759.43433451,0.0002254,2]
[312809309,1706286632948,-349.7261996,0.0002254,2]
[312809311,1706286632958,-203.12390135,0.0002254,2]
[312809313,1706286632968,-1324.30774279,0.0002254,4]
[312809315,1706286632977,-1204.3280847,0.0002254,2]
[312809317,1706286632987,-501.74130467,0.0002254,2]
[312809319,1706286632996,-326.5304041,0.0002254,2]
[312809321,1706286633006,-155.65924392,0.0002254,2]
[312809323,1706286633017,-641.96554041,0.0002254,2]
[312809325,1706286633026,-186.04753694,0.0002254,2]
[312809327,1706286633040,-4633.47107081,0.00022541,2]
[312809329,1706286633051,-442.08756326,0.00022715,2]
[312809331,1706286633060,-46882.24082713,0.0002277,2]
[312809335,1706286633088,-121925.75917287,0.0002277,2]
[312809337,1706286633101,-800.0,0.00022815,2]
[312809339,1706286633111,-200.0,0.00022816,2]
[312809341,1706286633122,-800.0,0.00022816,2]
[312809344,1706286633131,-800.0,0.00022816,2]
[312809345,1706286633140,-200.0,0.00022816,2]
[312809346,1706286633149,-155.0,0.00022883,2]
[312809347,1706286633159,-531.6885,0.00022885,2]
[312809348,1706286633169,-1009.55503212,0.00022895,2]
[312809349,1706286633179,-285.58641308,0.00022895,2]
[312809350,1706286633189,-2343.28005747,0.00022895,2]
[312809351,1706286633199,-7195.74020548,0.00022896,2]
[312809352,1706286633209,-313.5325998,0.00022896,2]
[312809353,1706286633219,-400.0,0.00022896,2]
[312809354,1706286633229,-35293.66598167,0.00022897,2]
[312809355,1706286633240,-7859.37066652,0.00022897,2]
[312809368,1706286638234,-368.57217243,0.00021701,2]
[312809369,1706286638246,-280.0,0.00021701,2]
[312809370,1706286638313,-295.12488295,0.00021701,2]
[312809371,1706286638325,-2104.93319171,0.00021701,2]
[312809372,1706286638335,-4162.14827112,0.00022897,2]
[312809373,1706286638373,-5792.15125948,0.00022897,2]
[312809374,1706286638384,-9989.52,0.00022897,2]
[312809375,1706286638396,-3638.39612994,0.00022897,2]
[312809404,1706286638870,-611.92576415,0.00022897,2]
[312809406,1706286638886,-1249.65,0.00022897,2]
[312809408,1706286638896,-506.6592307,0.00022897,2]
[312809410,1706286638907,-7969.20317387,0.00022897,2]
[312809415,1706286638938,-1669.89312,0.00022897,2]
[312809417,1706286638954,-218238.84223224,0.00022897,2]
[312809418,1706286638963,-128557.28899702,0.000229,2]
[312809419,1706286638972,-152.52707569,0.000229,2]
[312809420,1706286638982,-2571.53201507,0.000229,2]
[312809421,1706286638990,-602.73531657,0.000229,2]
[312809422,1706286638999,-195.70947401,0.000229,4]
[312809423,1706286639008,-1195.72739946,0.000229,2]
[312809424,1706286639017,-210.20986734,0.000229,2]
[312809425,1706286639026,-3463.13975101,0.000229,2]
[312809426,1706286639035,-435.2,0.00022934,2]
[312809427,1706286639049,-2678.90182877,0.00022998,2]
[312809428,1706286639058,-301.21340696,0.00022998,2]
[312809429,1706286639067,-485.24377081,0.00022998,2]
[312809431,1706286639078,-206.73159676,0.00022998,2]
[312809432,1706286639088,-1828.75113108,0.00022998,2]
[312809434,1706286639096,-207.78272895,0.00022998,2]
[312809436,1706286639105,-161.33076869,0.00022998,2]
[312809438,1706286639114,-209.21422491,0.00022998,2]
[312809440,1706286639125,-157.39865583,0.00022998,2]
[312809442,1706286639134,-1956.89182349,0.00022998,2]
[312809445,1706286639143,-155.5919666,0.00022998,2]
[312809446,1706286639152,-333.87954227,0.00022998,2]
[312809448,1706286639162,-246.31239322,0.00022998,2]
[312809450,1706286639171,-204.38101367,0.00022998,2]
[312809452,1706286639180,-1732.54243124,0.00022999,2]
[312809455,1706286639189,-629.89597196,0.00022999,2]
[312809457,1706286639199,-500.0,0.00022999,2]
[312809459,1706286639208,-500.0,0.00022999,2]
[312809461,1706286639217,-500.0,0.00022999,2]
[312809463,1706286639227,-197.28284974,0.00022999,2]
[312809465,1706286639236,-500.0,0.00022999,2]
[312809467,1706286639245,-490.6470275,0.00022999,2]
[312809469,1706286639255,-500.0,0.00022999,2]
[312809471,1706286639264,-500.0,0.00022999,2]
[312809473,1706286639273,-500.0,0.00022999,2]
[312809475,1706286639283,-3255.35945448,0.00022999,2]
[312809477,1706286639293,-500.0,0.00022999,2]
[312809479,1706286639302,-233.75905372,0.00022999,2]
[312809481,1706286639311,-500.0,0.00022999,2]
[312809483,1706286639321,-603.83148352,0.00022999,2]
[312809485,1706286639330,-2337993.88985151,0.00023,2]
[312809487,1706286639339,-305.35767525,0.00023,2]
[312809489,1706286639348,-140745.6237375,0.00023,2]
[312809492,1706286639369,-24970.42219502,0.00023,2]
[312809602,1706286640796,-469.65376807,0.00022896,2]
[312809603,1706286640805,-1410.18609832,0.00022897,3]
[312809604,1706286640814,-4331.36013361,0.00023,2]
[312809605,1706286640825,-929.13468914,0.00023,2]
[312809606,1706286640837,-4975.97281643,0.00023,2]
[312809607,1706286640848,-491.37717031,0.00023,2]
[312809630,1706286643271,-503.0,0.00022896,2]
[312809632,1706286643283,-497.0,0.00022896,2]
[312809634,1706286643295,-219.73630849,0.00023,2]
[312809636,1706286643306,-782.76003,0.00023,2]
[312809639,1706286643439,-398662.74269999,0.00023,2]
[312809640,1706286643449,-34267.08537959,0.00023,2]
[312809641,1706286643562,-16634.45378068,0.00023,2]
[312809642,1706286643627,-960.45152962,0.00023,2]
[312809644,1706286643639,-453.02011,0.00023,2]
[312809647,1706286646272,-2309.54511602,0.00022896,2]
[312809648,1706286646282,-155.74510901,0.00022999,2]
[312809649,1706286646291,-1627.67972724,0.00022999,2]
[312809650,1706286646302,-3305.26679229,0.00022999,2]
[312809651,1706286646312,-798.45589324,0.00022999,2]
[312809652,1706286646320,-74335.98837428,0.00023,2]
[312809653,1706286646395,-214464.74323069,0.00023,2]
[312809654,1706286646406,-31262.09384667,0.00023,2]
[312809655,1706286646423,-418.84953567,0.00022999,2]
[312809656,1706286646435,-2315.53754354,0.00022999,2]
[312809657,1706286646444,-19186.80214798,0.00023,2]
[312809714,1706286647102,-5863.24026476,0.00023,2]
[312809715,1706286647113,-22255.16027472,0.00023,2]
[312809716,1706286647122,-1500.0,0.00023,2]
[312809717,1706286647131,-1500.0,0.00023,2]
[312809718,1706286647140,-1500.0,0.00023,2]
[312809720,1706286647149,-1461.98,0.00023,2]
[312809722,1706286647158,-368.82,0.00023128,2]
[312809724,1706286647168,-519.48,0.00023149,2]
[312809726,1706286647178,-7694.0,0.000236,2]
[312809728,1706286647186,-906.0,0.000236,2]
[312809730,1706286647195,-1037.48,0.00023632,2]
[312809732,1706286647204,-2571.53201506,0.00023789,2]
[312809734,1706286647213,-152.52707538,0.00023795,2]
[312809736,1706286647222,-519.48,0.00023975,2]
[312809738,1706286647231,-155.77210783,0.00024,2]
[312809740,1706286647241,-346.74,0.00024027,2]
[312809742,1706286647249,-442.08756322,0.00024138,2]
[312809744,1706286647259,-167.0,0.00024297,2]
[312809746,1706286647268,-12888.12,0.00024384,2]
[312809748,1706286647277,-188.85,0.00024658,2]
[312809750,1706286647286,-185.94,0.00024658,2]
[312809752,1706286647295,-168.27,0.00024658,2]
[312809754,1706286647305,-155.96,0.00024658,2]
[312809756,1706286647314,-250.0,0.00024658,2]
[312809758,1706286647323,-2571.53201506,0.00024678,2]
[312809760,1706286647332,-152.52707538,0.00024691,2]
[312809762,1706286647342,-564.8,0.00024741,2]
[312809764,1706286647351,-5208.39649226,0.00024741,4]
[312809767,1706286647360,-519.48,0.00024801,2]
[312809768,1706286647370,-346.74,0.00024877,2]
[312809771,1706286647379,-737.0127377,0.00025,2]
[312809773,1706286647389,-303.39738056,0.00025,2]
[312809775,1706286647398,-159.97415907,0.00025,2]
[312809777,1706286647407,-202.3461783,0.00025,2]
[312809779,1706286647417,-1586.52836602,0.00025,2]
[312809781,1706286647426,-928.32146043,0.00025,2]
[312809783,1706286647436,-1903.14431336,0.00025,2]
[312809785,1706286647445,-18423.80003325,0.00025,2]
[312809786,1706286647454,-450.0,0.00025,3]
[312809789,1706286647463,-1037.48,0.00025276,2]
[312809791,1706286647473,-150.0,0.000253,2]
[312809793,1706286647482,-155.0,0.0002535,2]
[312809795,1706286647491,-155.59130604,0.0002535,2]
[312809796,1706286647501,-856.10256511,0.0002535,2]
[312809799,1706286647510,-155.47766133,0.0002535,2]
[312809800,1706286647519,-1033.92055253,0.0002535,2]
[312809803,1706286647529,-368.82,0.00025392,2]
[312809804,1706286647538,-442.08756322,0.00025562,2]
[312809807,1706286647548,-2571.53201506,0.00025567,2]
[312809809,1706286647557,-152.52707538,0.00025586,2]
[312809811,1706286647565,-207.0,0.00025626,2]
[312809813,1706286647574,-519.48,0.00025627,2]
[312809814,1706286647584,-5888.336,0.00025655,2]
[312809817,1706286647593,-387.0,0.00025655,2]
[312809819,1706286647602,-3090.987,0.00025655,2]
[312809820,1706286647611,-837.0,0.00025655,2]
[312809823,1706286647620,-1858.0,0.00025655,2]
[312809825,1706286647629,-253.084,0.00025655,2]
[312809826,1706286647638,-948.0,0.00025655,2]
[312809829,1706286647647,-1032.0,0.00025655,2]
[312809831,1706286647657,-1233.0,0.00025655,2]
[312809833,1706286647668,-168.331,0.00025689,2]
[312809835,1706286647678,-150.0,0.00025689,2]
[312809837,1706286647686,-346.74,0.00025727,2]
[312809839,1706286647695,-196.02,0.00025753,2]
[312809841,1706286647704,-241.673,0.00025795,2]
[312809843,1706286647713,-463.538,0.00025795,2]
[312809844,1706286647723,-1938.0,0.00025795,2]
[312809847,1706286647734,-625.693,0.00025795,2]
[312809849,1706286647743,-1062.279,0.00025795,2]
[312809851,1706286647752,-322.365,0.00025795,2]
[312809852,1706286647762,-151.32,0.00025795,2]
[312809855,1706286647771,-851.879,0.00025795,2]
[312809856,1706286647780,-209.0,0.00025795,2]
[312809859,1706286647789,-2470.973,0.00025795,2]
[312809861,1706286647800,-1225.44971467,0.00025795,2]
[312809863,1706286647816,-4381.05428533,0.00025795,2]
[312809865,1706286647825,-1360.0,0.00025795,2]
[312809867,1706286647835,-637.03388266,0.00025795,2]
[312809869,1706286647846,-1726.20511734,0.00025795,2]
[312809871,1706286647856,-19743.0,0.00025795,2]
[312809873,1706286647865,-2911.0,0.00025795,2]
[312809876,1706286647875,-4184.0,0.00025795,2]
[312809878,1706286647884,-2276.0,0.00025795,2]
[312809880,1706286647893,-435.2,0.00025801,2]
[312809881,1706286647903,-500.0,0.00026,2]
[312809883,1706286647913,-151.69852475,0.00026,2]
[312809885,1706286647922,-1019.0,0.00026,2]
[312809887,1706286647931,-1000.0,0.00026,2]
[312809889,1706286647940,-4000.0,0.00026,2]
[312809891,1706286647949,-150.0,0.00026314,2]
[312809893,1706286647960,-267.32004551,0.00026323,2]
[312809895,1706286647970,-150.0,0.00026325,2]
[312809897,1706286647979,-300.0,0.00026327,2]
[312809899,1706286647988,-300.0,0.00026328,2]
[312809902,1706286647999,-150.0,0.00026331,2]
[312809903,1706286648009,-150.0,0.00026334,2]
[312809906,1706286648020,-150.0,0.00026334,2]
[312809908,1706286648031,-150.0,0.00026344,2]
[312809910,1706286648041,-150.0,0.00026348,2]
[312809911,1706286648054,-150.0,0.0002635,2]
[312809913,1706286648063,-150.0,0.00026358,2]
[312809915,1706286648073,-150.0,0.00026365,2]
[312809917,1706286648086,-300.0,0.00026382,2]
[312809919,1706286648096,-150.0,0.00026386,2]
[312809921,1706286648106,-150.0,0.0002639,2]
[312809923,1706286648117,-300.0,0.00026391,2]
[312809925,1706286648128,-150.0,0.00026401,2]
[312809927,1706286648138,-150.0,0.00026416,2]
[312809929,1706286648148,-150.0,0.0002642,2]
[312809931,1706286648159,-150.0,0.00026423,2]
[312809933,1706286648169,-308.80025419,0.00026434,2]
[312809935,1706286648179,-150.0,0.00026435,2]
[312809937,1706286648189,-150.0,0.00026439,2]
[312809940,1706286648200,-150.0,0.00026455,2]
[312809942,1706286648210,-2571.53201506,0.00026456,2]
[312809943,1706286648219,-300.0,0.00026456,2]
[312809945,1706286648229,-150.0,0.00026457,2]
[312809947,1706286648239,-150.0,0.00026461,2]
[312809949,1706286648249,-300.0,0.00026462,2]
[312809951,1706286648259,-150.0,0.0002647,2]
[312809953,1706286648268,-300.0,0.00026472,2]
[312809955,1706286648278,-152.52707538,0.00026481,2]
[312809957,1706286648288,-150.0,0.00026493,2]
[312809959,1706286648297,-300.0,0.00026498,2]
[312809962,1706286648312,-150.0,0.00026506,2]
[312809963,1706286648322,-150.0,0.00026507,2]
[312809965,1706286648332,-150.0,0.00026511,2]
[312809967,1706286648342,-150.0,0.00026522,2]
[312809970,1706286648351,-150.0,0.00026523,2]
[312809971,1706286648361,-150.0,0.00026524,2]
[312809973,1706286648370,-150.0,0.00026525,2]
[312809975,1706286648379,-300.0,0.00026528,2]
[312809978,1706286648388,-150.0,0.0002653,2]
[312809979,1706286648398,-150.0,0.00026532,2]
[312809982,1706286648407,-150.0,0.00026534,2]
[312809984,1706286648417,-150.0,0.0002655,2]
[312809986,1706286648426,-150.0,0.00026563,2]
[312809988,1706286648435,-150.0,0.00026566,2]
[312809989,1706286648444,-300.0,0.0002657,2]